Cogmind - Beta 11 X8 --- EXPLORER MODE // 2021.10.27 @ 13:59:29 // Winter2019/RPGLIKE Player: jfk Result: Self-destructed Performance ------------- Evolutions (4) 2000 Regions Visited (5) 1000 Robots Destroyed (41) 205 Value Destroyed (1498) 1498 Prototype IDs (3) 60 Alien Tech Used (0) 0 Bonus (212) 212 TOTAL SCORE: 4975 Bonus ------- Follower Combat Kills 212 Cogmind --------- Core Integrity 1100/1100 Matter 300/300 Energy 560/560 System Corruption 0% Temperature Cool (0) Movement Walking (120) Location -6/Factory Parts ------- > --- POWER (2) -------- Micro Nuclear Core Fission Core > --- PROPULSION (3) --- Flexi-carbon Leg Flexi-carbon Leg Flexi-carbon Leg > --- UTILITY (7) ------ Heat Sink Improved Heat Sink Compact Battery Enhanced Optical Array Power Shielding Weapon Shielding Improved Shield Generator > --- WEAPON (3) ------- Heavy Particle Gun Force Rifle Improved Datajack > --- INVENTORY (4) ---- Protomatter-53 Flexi-carbon Leg Arc Projector Heavy Laser Peak State ------------ > --- POWER ------------ Micro Nuclear Core Fission Core > --- PROPULSION ------- Flexi-carbon Leg Flexi-carbon Leg Flexi-carbon Leg > --- UTILITY ---------- Heat Sink Improved Heat Sink Compact Battery Enhanced Optical Array Power Shielding Weapon Shielding Improved Shield Generator > --- WEAPON ----------- Heavy Particle Gun Force Rifle Improved Datajack > --- INVENTORY -------- Protomatter Flexi-carbon Leg Arc Projector Heavy Laser [Rating: 55] Favorites ----------- Power Micro Nuclear Core Engine Improved Ion Engine Power Core Micro Nuclear Core Propulsion Aluminum Leg Leg Aluminum Leg Utility Weapon Shielding Device Heat Sink Storage Compact Battery Processor Enhanced Optical Array Protection Weapon Shielding Weapon Heavy Particle Gun Energy Gun Heavy Particle Gun Energy Cannon Beam Cannon Ballistic Gun Light Assault Rifle Special Melee Weapon Improved Datajack Build | -11 -10 -9 -8 -7 -6 ------- Run | Scr Mat Mat Mat Fac Fac Slots Evolved 11 | . 7 . 4 . . Power 1 | . 1 . . . . Propulsion 2 | . 1 . 1 . . Utility 6 | . 4 . 2 . . Weapon 2 | . 1 . 1 . . Parts Attached 49 | . 7 11 10 6 15 Power 7 | . . 3 1 2 1 Engine 1 | . . 1 . . . Core 6 | . . 2 1 2 1 Reactor . | . . . . . . Propulsion 15 | . 2 2 1 2 8 Treads . | . . . . . . Leg 15 | . 2 2 1 2 8 Wheel . | . . . . . . Hover . | . . . . . . Flight . | . . . . . . Utility 10 | . 3 2 3 1 1 Device 5 | . 1 1 2 1 . Storage 1 | . . . 1 . . Processor 1 | . . . . . 1 Hackware . | . . . . . . Protection 3 | . 2 1 . . . Artifact . | . . . . . . Weapon 17 | . 2 4 5 1 5 Energy Gun 13 | . . 4 5 1 3 Energy Cannon 1 | . 1 . . . . Ballistic Gun 1 | . 1 . . . . Ballistic Cannon . | . . . . . . Launcher . | . . . . . . Special Weapon . | . . . . . . Impact Weapon . | . . . . . . Slashing Weapon . | . . . . . . Piercing Weapon . | . . . . . . Special Melee Weapon 2 | . . . . . 2 Unidentified Prototypes 3 | . . 1 1 . 1 Parts Lost . | . . . . . . Power . | . . . . . . Propulsion . | . . . . . . Utility . | . . . . . . Weapon . | . . . . . . Highest Loss Streak . | . . . . . . Average Slot Usage (%) 91 | . 49 82 89 98 99 Core 11 | . . 10 12 13 12 Leg 18 | . 12 18 16 18 20 Device 21 | . 6 12 23 26 24 Storage 3 | . . . . 6 6 Protection 15 | . 14 22 18 13 13 Energy Gun 14 | . . 12 18 20 14 Energy Cannon 1 | . 8 3 . . . Special Melee Weapon 2 | . . . . . 4 Naked Turns 13 | . 13 . . . . Heaviest Build 34 | . 7 19 25 29 34 Greatest Support 66 | 3 10 26 31 49 66 Greatest Overweight (x) 1 | . . 1 . . . Average Overweight (x) . | . . . . . . Largest Inventory Capacity 4 | . 1 4 4 4 4 Average Capacity 3 | . . 2 4 4 4 Most Carried 4 | . 1 4 4 4 4 Average Carried 3 | . . 1 3 4 3 Final Capacity 4 | . 1 4 4 4 4 Final Carried 4 | . 1 4 4 4 4 Class Distribution -------------------- 37% | Scavenger-Mutant 30% | Hacker-Mutant 23% | Hacker-Tank 5% | Scavenger-Gunner Dominant Class ---------------- Hacker-Mutant | -10/Materials Hacker-Mutant | -9/Materials Hacker-Mutant | -8/Materials Hacker-Tank | -7/Factory Scavenger-Mutant | -6/Factory Resources | -11 -10 -9 -8 -7 -6 ----------- Run | Scr Mat Mat Mat Fac Fac Matter Collected 673 | 68 63 215 62 93 172 Remotely . | . . . . . . Salvage Created 1651 | . 63 236 561 252 539 Parts 89 | . 6 18 24 9 32 Haulers Intercepted 2 | . . 1 1 . . Recyclers Shooed 2 | . . 1 1 . . Parts Field Recycled . | . . . . . . Retrieved Matter . | . . . . . . Parts Self-Destructed . | . . . . . . Prevented . | . . . . . . Kills | -11 -10 -9 -8 -7 -6 ------- Run | Scr Mat Mat Mat Fac Fac Combat Hostiles Destroyed 36 | . 3 7 13 4 9 Guns 30 | . . 6 13 4 7 Cannons 3 | . 2 1 . . . Classes Destroyed 12 | . 1 3 1 1 6 Worker 1 | . . . . . 1 Hauler 2 | . . 1 1 . . Recycler 1 | . . 1 . . . Operator 1 | . . . . . 1 Swarmer 9 | . . 3 5 1 . Grunt 16 | . 3 4 7 1 1 Brawler 2 | . . . 1 1 . Sentry 1 | . . . . . 1 Specialist 2 | . . . . . 2 Hunter 1 | . . . . . 1 Programmer 4 | . . . . 1 3 Heavy 1 | . . . . . 1 Best Kill Streak 7 | . 2 4 7 4 2 Combat Bots Only 7 | . 2 3 7 4 2 Max Kills in Single Turn 1 | . 1 1 1 1 1 Gunslinging . | . . . . . . Exploded . | . . . . . . Melee . | . . . . . . Uniques/NPCs Destroyed . | . . . . . . Combat | -11 -10 -9 -8 -7 -6 -------- Run | Scr Mat Mat Mat Fac Fac Damage Taken 1425 | . 51 201 680 52 441 Core 1033 | . 32 147 498 35 321 Absorbed by Shields 200 | . . . . 24 176 Redirected to Core 748 | . 26 91 358 35 238 Core Remaining (%) 88 | 100 100 75 84 81 . Volleys Fired 114 | . 7 20 42 5 40 Largest 3 | . 2 2 3 3 3 Hottest 199 | . 80 126 199 171 171 Shots Fired 200 | . 11 32 55 15 87 Gun 186 | . 4 25 55 15 87 Cannon 14 | . 7 7 . . . Launcher . | . . . . . . Special . | . . . . . . Kinetic 4 | . 4 . . . . Thermal 196 | . 7 32 55 15 87 Explosive . | . . . . . . Electromagnetic . | . . . . . . Robot Hit Streak 48 | . 9 14 36 48 20 Robot Miss Streak 4 | . . 4 4 1 1 Penetration Max . | . . . . . . Secondary Targets 1 | . . . . 1 . Max Gunslinging Chain 1 | . . . . 1 . Shots Hit Robots 178 | . 9 25 53 13 78 Core Hits 92 | . 2 21 35 8 26 Critical Kills 2 | . 1 . . . 1 Critical Parts Destroyed . | . . . . . . Critical Strikes 13 | . 1 1 6 . 5 Burn 10 | . . 1 6 . 3 Meltdown 1 | . 1 . . . . Destroy 2 | . . . . . 2 Melee Attacks 5 | . . . . . 5 Impact . | . . . . . . Slashing . | . . . . . . Piercing . | . . . . . . Sneak Attacks 5 | . . . . . 5 Combat Hostiles . | . . . . . . Follow-up Attacks . | . . . . . . Damage Inflicted 3188 | . 138 417 901 268 1464 Guns 2977 | . 14 341 901 257 1464 Cannons 193 | . 124 69 . . . Explosions . | . . . . . . Melee . | . . . . . . Ramming 18 | . . 7 . 11 . Kinetic 14 | . 14 . . . . Thermal 3156 | . 124 410 901 257 1464 Explosive . | . . . . . . Electromagnetic . | . . . . . . Impact . | . . . . . . Slashing . | . . . . . . Piercing . | . . . . . . Highest Corruption . | . . . . . . Average Corruption . | . . . . . . Corruption Purged . | . . . . . . Overload Shots . | . . . . . . Overflow Damage 3 | . . 3 . . . Projectiles 3 | . . 3 . . . Explosions . | . . . . . . Melee . | . . . . . . Knockbacks . | . . . . . . Impact . | . . . . . . Kinetic . | . . . . . . Secondary . | . . . . . . Self-Inflicted Damage . | . . . . . . Shots . | . . . . . . Rammed . | . . . . . . Targets Rammed 5 | . . 4 . 1 . Kicked 5 | . . 4 . 1 . Crushed . | . . . . . . Highest Temperature 392 | . 75 225 392 235 261 Average Temperature 90 | . 36 83 178 102 60 Received Heat Transfer 694 | . 48 120 378 18 130 Effects 2 | . . . 2 . . Energy Bleed 1 | . . . 1 . . Short Circuit 1 | . . . 1 . . Siege Activations . | . . . . . . Robots Corrupted . | . . . . . . Combat Hostiles . | . . . . . . Parts Fried . | . . . . . . Impact Corruptions . | . . . . . . Robots Melted 3 | . 1 . . . 2 Combat Hostiles 3 | . 1 . . . 2 Parts Melted 25 | . 4 1 4 4 12 Heat Transferred 6705 | . 259 819 2223 481 2923 Parts Sabotaged . | . . . . . . Parts Stolen . | . . . . . . Parts Stripped . | . . . . . . Power Chain Reactions . | . . . . . . Missiles Intercepted . | . . . . . . Alert | -11 -10 -9 -8 -7 -6 ------- Run | Scr Mat Mat Mat Fac Fac Peak Influence 393 | . 77 220 393 220 327 Initial 129 | . . 23 66 129 79 Average 141 | . 56 106 295 141 102 Maximum Alert Level 1 | . . 1 1 1 1 Low Security (%) 80 | 100 100 90 29 88 92 Level 1 19 | . . 9 70 11 7 Level 2 . | . . . . . . Level 3 . | . . . . . . Level 4 . | . . . . . . Level 5 . | . . . . . . High Security . | . . . . . . Max Security . | . . . . . . Squads Dispatched 10 | . . 1 . 1 8 Investigation 2 | . . . . . 2 Extermination 3 | . . . . 1 2 Reinforcement 5 | . . 1 . . 4 Assault . | . . . . . . Garrison . | . . . . . . Intercept . | . . . . . . Construction Impeded . | . . . . . . Haulers Reinforced 1 | . . . . . 1 Active Scanning Responses . | . . . . . . Cargo Convoy Interrupts 1 | . . . . . 1 Stealth | -11 -10 -9 -8 -7 -6 --------- Run | Scr Mat Mat Mat Fac Fac Distress Signals 4 | . . 2 1 . 1 Communications Jammed . | . . . . . . Distress Signals . | . . . . . . Times Spotted 55 | . 4 14 16 5 16 Peak Tracking Total 5 | . 2 5 5 4 2 Tactical Retreats . | . . . . . . Traps | -11 -10 -9 -8 -7 -6 ------- Run | Scr Mat Mat Mat Fac Fac Traps Triggered 7 | . . 2 1 2 2 Indirectly . | . . . . . . Trap Hack Attempts . | . . . . . . Triggered . | . . . . . . Disarmed . | . . . . . . Reprogrammed . | . . . . . . Reused . | . . . . . . Traps Extracted . | . . . . . . Installed . | . . . . . . Triggered 1 | . . . . . 1 Machines | -11 -10 -9 -8 -7 -6 ---------- Run | Scr Mat Mat Mat Fac Fac Machines Disabled 3 | . . . . . 3 Max in Single Turn . | . . . . . . Machines Sabotaged . | . . . . . . Garrisons Compromised 1 | . . . . . 1 Overloaded Fab Kills . | . . . . . . Hacking | -11 -10 -9 -8 -7 -6 --------- Run | Scr Mat Mat Mat Fac Fac Machines Accessed 9 | . 1 2 1 1 4 Terminals 9 | . 1 2 1 1 4 Fabricators . | . . . . . . Repair Stations . | . . . . . . Recycling Units . | . . . . . . Scanalyzers . | . . . . . . Garrison Access . | . . . . . . Total Hacks 18 | . 3 3 1 2 9 Successful 7 | . 1 2 1 . 3 Failed 11 | . 2 1 . 2 6 Catastrophic 2 | . . . . . 2 Database Lockouts . | . . . . . . Manual 15 | . 3 1 1 2 8 Terminals 18 | . 3 3 1 2 9 Fabricators . | . . . . . . Repair Stations . | . . . . . . Recycling Units . | . . . . . . Scanalyzers . | . . . . . . Garrison Access . | . . . . . . Terminal Hacks 6 | . 1 2 1 . 2 Robot Analysis 1 | . . 1 . . . Open DSF 1 | . . . . . 1 Level Access Points 3 | . 1 1 1 . . Hauler Manifests 1 | . . . . . 1 Fabricator Hacks . | . . . . . . Repair Station Hacks . | . . . . . . Recycling Unit Hacks . | . . . . . . Scanalyzer . | . . . . . . Garrison Access Hacks . | . . . . . . Unauthorized Hacks 1 | . . . . . 1 Terminals 1 | . . . . . 1 Botnet 1 | . . . . . 1 Fabricators . | . . . . . . Repair Stations . | . . . . . . Recycling Units . | . . . . . . Scanalyzers . | . . . . . . Garrison Access . | . . . . . . Data Cores Recovered . | . . . . . . Used . | . . . . . . Hacking Detections 6 | . 1 1 . 1 3 Full Trace Events 2 | . . . . . 2 Feedback Events . | . . . . . . Feedback Blocked . | . . . . . . Robot Schematics Acquired . | . . . . . . Robots Built . | . . . . . . Authchips . | . . . . . . Time . | . . . . . . Total Robot Build Rating . | . . . . . . Part Schematics Acquired . | . . . . . . Parts Built . | . . . . . . Authchips . | . . . . . . Time . | . . . . . . Total Part Build Rating . | . . . . . . Parts Repaired . | . . . . . . Time . | . . . . . . Parts Recycled . | . . . . . . Recycled Matter . | . . . . . . Retrieved Matter . | . . . . . . Retrieved Components . | . . . . . . Parts Scanalyzed . | . . . . . . Part Schematics Acquired . | . . . . . . Parts Damaged . | . . . . . . Bothacking | -11 -10 -9 -8 -7 -6 ------------ Run | Scr Mat Mat Mat Fac Fac Used RIF Installer . | . . . . . . Robots Hacked 1 | . . . . . 1 Non-combat 1 | . . . . . 1 Combat . | . . . . . . Robot Hacks Applied 1 | . . . . . 1 find_dsf 1 | . . . . . 1 Relay Couplers Released . | . . . . . . Robots Rewired 1 | . . . . . 1 Allies Hacked . | . . . . . . Hacks Repelled . | . . . . . . Allies | -11 -10 -9 -8 -7 -6 -------- Run | Scr Mat Mat Mat Fac Fac Total Allies 1 | . . . . . 1 Largest Group 1 | . . . . . 1 Highest-Rated Group 41 | . . . . . 41 Highest-Rated Ally 41 | . . . . . 41 Total Orders . | . . . . . . Ally Attacks 16 | . . . . . 16 Total Damage 492 | . . . . . 492 Kills 5 | . . . . . 5 Allies Corrupted . | . . . . . . Allies Melted . | . . . . . . Intel | -11 -10 -9 -8 -7 -6 ------- Run | Scr Mat Mat Mat Fac Fac Robot Analysis Total 1 | . . 1 . . . Derelict Logs Recovered . | . . . . . . Drone Launches . | . . . . . . Drone Recoveries . | . . . . . . Exploration | -11 -10 -9 -8 -7 -6 ------------- Run | Scr Mat Mat Mat Fac Fac Turns Passed 2220 | 10 146 362 398 395 909 Spaces Moved 1471 | 20 111 238 213 307 582 Core 49 | 20 25 4 . . . Treads . | . . . . . . Legs 1422 | . 86 234 213 307 582 Wheels . | . . . . . . Hover . | . . . . . . Flight . | . . . . . . Fastest Speed 50 | 50 50 100 120 120 120 Average Speed 117 | 50 104 119 120 120 120 Slowest Speed 120 | 50 120 120 120 120 120 Overloaded Moves . | . . . . . . Propulsion Burnouts . | . . . . . . Robots Hopped . | . . . . . . Cave-ins Triggered . | . . . . . . Exploration Rate (%) 16 | 3 23 29 16 16 12 Regions Visited 5 Branch Regions . Pre-discovered Areas . | . . . . . . Known Exits Taken 5 | 1 1 1 1 1 . Unknown Exits Taken . | . . . . . . Scrap Searched . | . . . . . . Spaces Dug . | . . . . . . Terrain Destroyed . | . . . . . . Melee . | . . . . . . Projectile . | . . . . . . AOE . | . . . . . . Terrain Rammed . | . . . . . . Walls Destroyed . | . . . . . . Machines Disabled . | . . . . . . Actions | -11 -10 -9 -8 -7 -6 --------- Run | Scr Mat Mat Mat Fac Fac Total 1755 | 19 127 278 301 322 708 Wait 16 | . . . 3 1 12 Move 1466 | 19 110 237 212 306 582 Hop . | . . . . . . Pick Up 8 | . 1 3 2 . 2 Fast Attach 41 | . 7 11 9 3 11 Attach . | . . . . . . Detach 2 | . . . 2 . . Swap 8 | . . . 1 3 4 Drop 27 | . . 3 8 3 13 Fire 114 | . 7 20 42 5 40 Melee 5 | . . . . . 5 Ram . | . . . . . . Kick 5 | . . 4 . 1 . Crush . | . . . . . . Escape Stasis . | . . . . . . Rewire 1 | . . . . . 1 Trap . | . . . . . . Miscellaneous 62 | . 2 . 22 . 38 Route ------- -11/Scrapyard -10/Materials (discovered 3 exits: *Mat x3) -9/Materials (discovered 3 exits: *Mat x3) -8/Materials (discovered 3 exits: *Fac x3) -7/Factory (discovered 2 exits: *Fac / *Sto) -6/Factory History --------- Turn | Location | Event 3 | -11/Scrapyard | Identified exit to Materials 3 | -11/Scrapyard | Discovered exit to Materials (range 15) 11 | -11/Scrapyard | Entered Materials 19 | -10/Materials | Identified exit to Materials 24 | -10/Materials | Upgraded with Power slot (x1) 24 | -10/Materials | Upgraded with Propulsion slot (x1) 24 | -10/Materials | Upgraded with Utility slot (x4) 24 | -10/Materials | Upgraded with Weapon slot (x1) 157 | -10/Materials | Entered another Materials area 159 | -9/Materials | Reached level 2 159 | -9/Materials | Reached level 3 241 | -9/Materials | Identified exit to Materials 318 | -9/Materials | Build established: Hacker-Mutant 464 | -9/Materials | Reached level 4 519 | -9/Materials | Entered another Materials area 521 | -8/Materials | Reached level 5 521 | -8/Materials | Reached level 6 531 | -8/Materials | Identified exit to Factory 600 | -8/Materials | Core integrity fell below 50% 620 | -8/Materials | Core integrity fell below 20% 643 | -8/Materials | Reached level 7 682 | -8/Materials | Destroyed 7 combat bots 799 | -8/Materials | Upgraded with Propulsion slot (x1) 799 | -8/Materials | Upgraded with Utility slot (x2) 799 | -8/Materials | Upgraded with Weapon slot (x1) 917 | -8/Materials | Entered Factory 919 | -7/Factory | Reached level 8 919 | -7/Factory | Reached level 9 1090 | -7/Factory | Identified exit to Storage 1090 | -7/Factory | Discovered exit to Storage (range 8) 1266 | -7/Factory | Reached level 10 1272 | -7/Factory | Identified exit to Factory 1272 | -7/Factory | Discovered exit to Factory (range 19) 1283 | -7/Factory | Build established: Hacker-Tank 1312 | -7/Factory | Entered another Factory area 1314 | -6/Factory | Reached level 11 1314 | -6/Factory | Reached level 12 1700 | -6/Factory | Reached level 13 1782 | -6/Factory | Build established: Scavenger-Mutant 2184 | -6/Factory | Cargo convoy interrupted 2221 | -6/Factory | Self-destructed Last Messages --------------- 02167_ Sneak attack on K-01 Serf. 02167_ Jacked K-01 Serf... 02169_ K-01 Serf collects debris. 02170_ Sneak attack on K-01 Serf. 02170_ Jacked K-01 Serf... 02173_ K-01 Serf collects debris. 02174_ Used Protomatter to restore core integrity (+11) 02177_ K-01 Serf collects debris. 02180_ Used Protomatter to restore part integrity (+121) 02181_ K-01 Serf collects debris. 02184_ ALERT: Cargo convoy interrupted, initiating access lockdown. 02188_ Sneak attack on R-10 Processor. 02188_ Jacked R-10 Processor... 02198_ Sneak attack on A-15 Conveyor. 02198_ Jacked A-15 Conveyor... >>find_dsf Pinpointed nearest DSF Access: (59,110) (already known). 02203_ K-01 Serf cleans the Subcomponent Replicator. 02219_ Connecting with DSF Access... 02219_ O-16 Technician: "IFF HANDSHAKE FAILED. SECURING TERMINAL." Map ----- +----------------------------------------------------+ | ????????????????????????????? ??????????????????? | | ????????????????????????????? ??????????????????? | | ?????????????????????????????k ??????????????????? | | ???????????????????????????? ??????????????????? | | ???????????????????????????? #??????????????????? | | ???????????????????????????? u#??????????????????? | | ???????????????????????????? #??????????????????? | | ???????????????????????????? #??????????????????? | | ????????????????????????????t #??????????????????? | | ???????????????????????##### #??????????????????? | | ??????????????????????? #??????????????????? | | ???????????????????????? #??????????????????? | | ???????????????????????? +??????????????????? | | ???????????????????????? #??????????????????? | | ???????????????????????? #??????????????????? | | ????????????????????????# #??????????????????? | | ????????????????????????# ^#??????????????????? | | ????????????????????????# #??????????????????? | | ????????????????????????# #??????????????????? | | ????????????????????????# #??????????????????? | | ????????????????????????# u#??????????????????? | | ????????????????????????# #??????????????????? | | ????????????????????????# #??????????????????? | | ????????????????????????#u #??????????????????? | | ???????????????????????## #??????????????????? | | ???????????????????????# @ #??????????????????? | | ???????????????????????#T u ^#??????????????????? | | ???????????????????????## ^ #??????????????????? | | ???????????############## k#??????????????????? | | ##?????????# # #??????????????????? | | #?????????# """"""""" # #??????????????????? | | ########### # #??????????????????? | | + """"""""" + + " " " ???????????? | | ########### # # " " " ! #?????? | | #?????????# """"""""" # #?? " " ! #?????? | | ##?????????# # #???? ! #?????? | | ???????????# """"""""" # #?????? #?????? | | ???????????# *# ####/#######+## #??? | | ##########?#!""""""""" # +??? | | #?#[%!! #R ####????????? | | #?#=!=! [ + #???????????? | | #?#+############ #???????????? | | """" #?#%#??????????# u #???????????? | | """" #?# #??????????# #???????????? | | ? """" #?# #??????????# #???????????? | | ??? """" #?#[#?????????? #???????????? | | ????? ### ###???????? + ??????????? | | ????###+## !*= #??????? # "????????? | | ##### | ### #? """??????? | | = # !%= #??""""?????? | +----------------------------------------------------+ Best States ------------- Heat Dissipation 49 Energy Generation 28 Energy Capacity 560 Matter Stores 300 Matter Capacity 300 Sight Range 28 Terrain Scan Density 10 Additional Mass Support 6 Resistance: KI 35 Resistance: TH 35 Resistance: EX 35 Resistance: EM 35 Resistance: I 35 Resistance: S 35 Resistance: P 35 Power Shielding 33 Weapon Shielding 33 Evasion (%) 55 Offensive Hacking 20 Item Schematics ----------------- None Robot Schematics ------------------ None Fabricated ------------ Nothing Alien Tech Used ----------------- None Achievements -------------- None Challenges ------------ None RPGLIKE | -11 -10 -9 -8 -7 -6 --------- Run | Scr Mat Mat Mat Fac Fac Levels Raised 12 | . . 3 3 3 3 XP Earned 25154 | 6000 385 4357 4995 3873 5544 XP Spent 17400 | . 5550 2250 6000 3600 . Upgrades 31 | . 8 3 14 6 . Power Slot 1 | . 1 . . . . Propulsion Slot 2 | . 1 . 1 . . Utility Slot 6 | . 4 . 2 . . Weapon Slot 2 | . 1 . 1 . . Core Integrity 10 | . . . 10 . . Inventory Capacity 4 | . 1 3 . . . Sight Range 6 | . . . . 6 . Protomatter Created 443 | . 83 63 69 . 228 Integrity Restored 1279 | . 32 . 477 . 770 Core 1033 | . 32 . 477 . 524 Parts 246 | . . . . . 246 Protomatter Decayed 196 | . 35 10 33 . 118 Game ------ Seed ClaymoresStealthField Manual? 0 Play Time 00:21:34 Cumulative 341.4 hours Start 2021.10.27 @ 13:04:30 End 2021.10.27 @ 13:59:29 Sessions 1 Manual Loads 0 Difficulty Explorer Special Mode Winter2019/RPGLIKE Game No. 104 Rogue 0 Adventurer 0 Explorer 104 Win Type - Total 26 Types 15/3/1/1/1/2/1/2/0 Lore% 71 Gallery% 86 Achievement% 81 Wizard Run 0 Options --------- ASCII 1 Keyboard 0 Movement Vi Keybinds 0 Fullscreen 2 Font 18/X11Bold Map View 76x50 Tactical HUD 1 Map Filters NONE Filters NONE Steam 1 RUN: 45c0ea8c-bbab-42e9-b959-49a0ec9d32e0